[Event "11th Arad Open 2018"]
[Site "Arad"]
[Date "2018.08.06"]
[Round "3"]
[White "Butusina, Samuel"]
[Black "Balla, Tamas-Kristof"]
[Result "0-1"]
[ECO "A00"]
[WhiteElo "1647"]
[BlackElo "2352"]
[Annotator "NA"]
[PlyCount "116"]
[EventDate "2018.08.05"]
[EventType "swiss"]
[EventCountry "ROU"]
[SourceTitle "playchess.com"]
[Source "ChessBase"]
[SourceQuality "1"]
[TimeControl "40/5400+30:1800+30"]

1. b4 {[%emt 0:00:00]} e5 {[%emt 0:04:09]} 2. Bb2 {[%emt 0:00:01]} Bxb4 {[%emt 0:00:35]} 3. Bxe5 {[%emt 0:00:02]} Nf6 {[%emt 0:00:05]} 4. Nc3 {[%emt 0:00:07]} Ba5 {[%emt 0:02:15]} 5. Nf3 {[%emt 0:02:58]} d6 {[%emt 0:00:21]} 6. Bxf6 {[%emt 0:00:15]} Qxf6 {[%emt 0:00:04]} 7. Ne4 {[%emt 0:00:12]} Qe7 {[%emt 0:00:09]} 8. Ng3 {[%emt 0:00:31]} O-O {[%emt 0:00:31]} 9. e3 {[%emt 0:00:41]} f5 {[%emt 0:00:32]} 10. Bc4+ {[%emt 0:00:56]} Kh8 {[%emt 0:00:05]} 11. Ne2 {[%emt 0:07:25]} Nd7 {[%emt 0:01:06]} 12. O-O {[%emt 0:02:26]} Ne5 {[%emt 0:00:11]} 13. Nxe5 {[%emt 0:00:02]} dxe5 {[%emt 0:00:05]} 14. f4 {[%emt 0:00:57]} Rd8 {[%emt 0:03:09]} 15. c3 {[%emt 0:14:05]} e4 {[%emt 0:01:55]} 16. Qc2 {[%emt 0:18:42]} c5 {[%emt 0:01:47]} 17. Rfd1 {[%emt 0:06:46]} Be6 {[%emt 0:03:35]} 18. Bxe6 {[%emt 0:01:22]} Qxe6 {[%emt 0:00:08]} 19. Qb3 {[%emt 0:10:11]} Qa6 {[%emt 0:00:11]} 20. Kf2 {[%emt 0:08:24]} Rd7 {[%emt 0:00:40]} 21. a4 {[%emt 0:05:54]} Rad8 {[%emt 0:01:10]} 22. Ra2 {[%emt 0:01:22]} Qh6 {[%emt 0:00:13]} 23. h3 {[%emt 0:01:56]} Qh4+ {[%emt 0:00:06]} 24. Kg1 {[%emt 0:00:56]} g6 {[%emt 0:02:25]} 25. Qe6 {[%emt 0:04:47]} Bc7 {[%emt 0:02:31]} 26. a5 {[%emt 0:05:11]} Kg7 {[%emt 0:01:51]} 27. Qb3 {[%emt 0:03:26]} Qf6 {[%emt 0:01:33]} 28. Qc4 {[%emt 0:03:04]} Qc6 {[%emt 0:00:39]} 29. g3 {[%emt 0:00:52]} Rd5 {[%emt 0:01:00]} 30. Kf2 {[%emt 0:00:21]} R8d6 {[%emt 0:00:06]} 31. Ke1 {[%emt 0:00:44]} Qd7 {[%emt 0:00:13]} 32. Qb3 {[%emt 0:00:20]} Bd8 {[%emt 0:01:31]} 33. Qc2 {[%emt 0:00:55]} c4 {[%emt 0:04:32]} 34. Qa4 Qc7 {[%emt 0:03:49]} 35. Rda1 {[%emt 0:00:57]} Ra6 {[%emt 0:00:32]} 36. Nd4 {[%emt 0:00:23]} Kf7 {[%emt 0:00:38]} 37. Qb4 {[%emt 0:00:42]} Be7 {[%emt 0:01:51]} 38. Qa4 {[%emt 0:00:22]} Qc8 {[%emt 0:02:17]} 39. Rb1 {[%emt 0:00:40]} b6 {[%emt 0:00:47]} 40. Rb5 {[%emt 0:00:00]} Rxa5 {[%emt 0:00:00]} 41. Qxa5 {[%emt 0:16:16]} bxa5 {[%emt 0:20:02]} 42. Rxd5 {[%emt 0:00:12]} Bd8 {[%emt 0:01:17]} 43. Rb5 {[%emt 0:02:20]} Bb6 {[%emt 0:01:01]} 44. Ke2 {[%emt 0:05:37]} Ke7 {[%emt 0:06:14]} 45. Rbxa5 {[%emt 0:05:33]} Bxa5 {[%emt 0:00:35]} 46. Rxa5 {[%emt 0:00:01]} a6 {[%emt 0:00:35]} 47. Nc2 {[%emt 0:00:12]} Qf8 {[%emt 0:02:04]} 48. Rxa6 {[%emt 0:01:38]} Qh6 {[%emt 0:00:09]} 49. Ra7+ {[%emt 0:01:31]} Kd6 {[%emt 0:00:08]} 50. h4 {[%emt 0:00:41]} Qh5+ {[%emt 0:00:07]} 51. Ke1 {[%emt 0:00:22]} Qf3 {[%emt 0:01:55]} 52. Rxh7 {[%emt 0:00:06]} Qxg3+ {[%emt 0:00:51]} 53. Kd1 {[%emt 0:00:16]} Qg1+ {[%emt 0:01:31]} 54. Ke2 {[%emt 0:00:32]} Ke6 {[%emt 0:02:08]} 55. Nd4+ {[%emt 0:00:11]} Kf6 {[%emt 0:00:12]} 56. Nc2 {[%emt 0:00:47]} Ke6 {[%emt 0:04:52]} 57. Ne1 {[%emt 0:01:28]} Qg4+ {[%emt 0:00:35]} 58. Kf1 {[%emt 0:00:38]} Qg2+ 0-1

[Event "11th Arad Open 2018"]
[Site "Arad"]
[Date "2018.08.08"]
[Round "5"]
[White "Georgiev, Kiril"]
[Black "Miron, Lucian-Costin"]
[Result "1-0"]
[ECO "D17"]
[WhiteElo "2593"]
[BlackElo "2460"]
[Annotator "RC"]
[PlyCount "91"]
[EventDate "2018.08.05"]
[EventType "swiss"]
[EventCountry "ROU"]
[SourceTitle "playchess.com"]
[Source "ChessBase"]
[SourceQuality "1"]
[TimeControl "40/5400+30:1800+30"]

1. d4 {[%emt 0:00:28]} d5 {[%emt 0:00:00]} 2. c4 {[%emt 0:00:24]} c6 {[%emt 0:00:00]} 3. Nf3 {[%emt 0:02:25]} Nf6 {[%emt 0:00:00]} 4. Nc3 {[%emt 0:00:17]} dxc4 {[%emt 0:00:04]} 5. a4 {[%emt 0:00:10]} Bf5 {[%emt 0:00:12]} 6. Ne5 {[%emt 0:00:30]} e6 {[%emt 0:00:58]} 7. f3 {[%emt 0:00:26]} Bb4 {[%emt 0:00:26]} 8. e4 {[%emt 0:04:15]} Bxe4 {[%emt 0:02:25]} 9. fxe4 {[%emt 0:00:07]} Nxe4 {[%emt 0:00:03]} 10. Bd2 {[%emt 0:00:07]} Qxd4 {[%emt 0:00:23]} 11. Nxe4 {[%emt 0:00:07]} Qxe4+ {[%emt 0:00:13]} 12. Qe2 {[%emt 0:00:04]} Bxd2+ {[%emt 0:00:09]} 13. Kxd2 {[%emt 0:00:06]} Qd5+ {[%emt 0:00:04]} 14. Kc3 {[%emt 0:04:14]} O-O {[%emt 0:02:44]} 15. Qe3 {[%emt 0:00:16]} Qa5+ {[%emt 0:31:19]} 16. Kc2 {[%emt 0:01:02]} b5 {[%emt 0:01:07]} 17. Be2 {[%emt 0:01:14]} bxa4 {[%emt 0:10:09]} 18. Bf3 {[%emt 0:10:51]} Qb5 {[%emt 0:13:39]} 19. Rhd1 {[%emt 0:03:27]} f6 {[%emt 0:05:47]} 20. Nd7 {[%emt 0:11:49]} Nxd7 {[%emt 0:05:44]} 21. Rxd7 {[%emt 0:00:28]} Rab8 {[%emt 0:06:00]} 22. Rb1 {[%emt 0:07:25]} Kh8 {[%emt 0:04:03]} 23. g4 {[%emt 0:10:13]} c5 {[%emt 0:06:55]} 24. Rxa7 {[%emt 0:12:39]} Rfd8 {[%emt 0:01:16]} 25. Be2 {[%emt 0:00:36]} Rd4 {[%emt 0:03:36]} 26. h3 {[%emt 0:10:11]} Qb6 {[%emt 0:00:56]} 27. Re7 {[%emt 0:03:38]} e5 {[%emt 0:00:30]} 28. g5 {[%emt 0:02:15]} e4 {[%emt 0:02:11]} 29. gxf6 {[%emt 0:01:51]} Qxf6 {[%emt 0:00:13]} 30. Ra7 {[%emt 0:03:12]} Qb6 {[%emt 0:00:43]} 31. Re7 {[%emt 0:01:01]} Qf6 {[%emt 0:01:17]} 32. Ra7 {[%emt 0:00:24]} h6 {[%emt 0:00:47]} 33. Rxa4 {[%emt 0:04:24]} Rb3 {[%emt 0:00:30]} 34. Qc1 {[%emt 0:00:57]} Qf2 {[%emt 0:01:54]} 35. Qf1 {[%emt 0:02:19]} Rf3 {[%emt 0:00:08]} 36. Qxf2 {[%emt 0:00:33]} Rxf2 {[%emt 0:00:00]} 37. Re1 {[%emt 0:00:02]} Rh2 {[%emt 0:01:19]} 38. Ra3 {[%emt 0:02:06]} g5 {[%emt 0:00:39]} 39. Re3 {[%emt 0:01:00]} Kg7 {[%emt 0:00:24]} 40. Kc3 {[%emt 0:00:00]} Kf6 {[%emt 0:00:00]} 41. Bxc4 {[%emt 0:16:08]} Kf5 {[%emt 0:22:06]} 42. b4 {[%emt 0:03:36]} Rc2+ {[%emt 0:00:05]} 43. Kxc2 {[%emt 0:00:21]} Rxc4+ {[%emt 0:00:01]} 44. Rc3 {[%emt 0:00:41]} Rxb4 {[%emt 0:00:39]} 45. Rxc5+ {[%emt 0:00:47]} Kf4 {[%emt 0:00:03]} 46. Rc3 {[%emt 0:00:09]} 1-0

[Event "11th Arad Open 2018"]
[Site "Arad"]
[Date "2018.08.08"]
[Round "5"]
[White "Mastrovasilis, Dimitrios"]
[Black "Deepan Chakkravarthy J"]
[Result "1-0"]
[ECO "B40"]
[WhiteElo "2586"]
[BlackElo "2530"]
[Annotator "ChessBase"]
[PlyCount "71"]
[EventDate "2018.08.05"]
[EventType "swiss"]
[EventCountry "ROU"]
[SourceTitle "playchess.com"]
[Source "ChessBase"]
[SourceQuality "1"]
[TimeControl "40/5400+30:1800+30"]

1. e4 {[%emt 0:01:10]} c5 {[%emt 0:00:00]} 2. Nf3 {[%emt 0:00:19]} e6 {[%emt 0:00:00]} 3. c4 {[%emt 0:00:43]} Nc6 {[%emt 0:02:11]} 4. d4 {[%emt 0:00:23]} cxd4 {[%emt 0:00:20]} 5. Nxd4 {[%emt 0:00:10]} Bb4+ {[%emt 0:01:09]} 6. Nc3 {[%emt 0:01:41]} Nf6 {[%emt 0:01:19]} 7. Nxc6 {[%emt 0:00:38]} Bxc3+ {[%emt 0:02:08]} 8. bxc3 {[%emt 0:00:21]} dxc6 {[%emt 0:00:06]} 9. Qxd8+ {[%emt 0:00:29]} Kxd8 {[%emt 0:00:03]} 10. e5 {[%emt 0:00:24]} Nd7 {[%emt 0:00:32]} 11. Bf4 {[%emt 0:03:40]} a5 {[%emt 0:06:38]} 12. h4 {[%emt 0:02:35]} a4 {[%emt 0:07:24]} 13. h5 {[%emt 0:08:28]} Ra5 {[%emt 0:02:39]} 14. h6 {[%emt 0:09:27]} g6 {[%emt 0:12:30]} 15. O-O-O {[%emt 0:00:48]} Ke7 {[%emt 0:05:52]} 16. Bg5+ {[%emt 0:13:10]} f6 {[%emt 0:03:31]} 17. Rxd7+ {[%emt 0:08:16]} Kxd7 {[%emt 0:00:02]} 18. Bxf6 {[%emt 0:00:14]} Rg8 {[%emt 0:00:04]} 19. Bd3 {[%emt 0:00:34]} Ke8 {[%emt 0:00:13]} 20. Rh4 {[%emt 0:06:34]} b6 {[%emt 0:00:21]} 21. Rd4 {[%emt 0:12:36]} Ra7 {[%emt 0:00:53]} 22. Rd6 {[%emt 0:01:05]} Bd7 {[%emt 0:13:15]} 23. c5 {[%emt 0:04:11]} bxc5 {[%emt 0:10:03]} 24. f4 {[%emt 0:02:05]} a3 {[%emt 0:01:19]} 25. Bc4 {[%emt 0:01:25]} Rb7 {[%emt 0:09:32]} 26. g4 {[%emt 0:02:18]} Kf8 {[%emt 0:12:42]} 27. Kd2 {[%emt 0:03:31]} Ke8 {[%emt 0:00:38]} 28. Ke3 {[%emt 0:01:46]} Rf8 {[%emt 0:03:29]} 29. Kf3 {[%emt 0:01:16]} Rc7 {[%emt 0:03:16]} 30. Kg3 {[%emt 0:00:22]} Rg8 {[%emt 0:01:59]} 31. Kh4 {[%emt 0:00:35]} Rb7 {[%emt 0:00:22]} 32. Bg7 {[%emt 0:02:39]} Ke7 {[%emt 0:00:20]} 33. f5 {[%emt 0:01:07]} gxf5 {[%emt 0:00:06]} 34. gxf5 {[%emt 0:00:29]} Ra8 {[%emt 0:00:04]} 35. f6+ {[%emt 0:06:04]} Kf7 {[%emt 0:00:29]} 36. Kg5 {[%emt 0:02:19]} 1-0

[Event "11th Arad Open 2018"]
[Site "Arad"]
[Date "2018.08.08"]
[Round "5"]
[White "Vajda, Levente"]
[Black "Gheorghiu, Calin"]
[Result "1-0"]
[ECO "A08"]
[WhiteElo "2558"]
[BlackElo "2292"]
[Annotator "ChessBase"]
[PlyCount "169"]
[EventDate "2018.08.05"]
[EventType "swiss"]
[EventCountry "ROU"]
[SourceTitle "playchess.com"]
[Source "ChessBase"]
[SourceQuality "1"]
[TimeControl "40/5400+30:1800+30"]

1. Nf3 {[%emt 0:00:00]} d5 {[%emt 0:00:00]} 2. g3 {[%emt 0:00:00]} c5 {[%emt 0:01:25]} 3. Bg2 {[%emt 0:00:00]} Nc6 {[%emt 0:00:34]} 4. O-O {[%emt 0:00:35]} e6 {[%emt 0:01:00]} 5. c4 {[%emt 0:00:35]} d4 {[%emt 0:06:19]} 6. e3 {[%emt 0:00:10]} Nf6 {[%emt 0:04:45]} 7. d3 {[%emt 0:00:43]} Be7 {[%emt 0:03:38]} 8. Re1 {[%emt 0:00:27]} O-O {[%emt 0:01:10]} 9. exd4 {[%emt 0:01:05]} cxd4 {[%emt 0:01:19]} 10. Na3 {[%emt 0:00:19]} Re8 {[%emt 0:10:08]} 11. Nc2 {[%emt 0:00:40]} Bf8 {[%emt 0:02:13]} 12. Ne5 {[%emt 0:13:43]} Nxe5 {[%emt 0:08:49]} 13. Rxe5 {[%emt 0:02:25]} Nd7 {[%emt 0:00:47]} 14. Re1 {[%emt 0:00:26]} e5 {[%emt 0:00:56]} 15. Qe2 {[%emt 0:20:12]} Nc5 {[%emt 0:19:31]} 16. b4 {[%emt 0:00:10]} Na4 {[%emt 0:00:35]} 17. Bd2 {[%emt 0:00:17]} Kh8 {[%emt 0:01:35]} 18. Bd5 {[%emt 0:02:13]} f6 {[%emt 0:06:09]} 19. Qh5 {[%emt 0:10:07]} g6 {[%emt 0:01:07]} 20. Qf3 {[%emt 0:02:11]} f5 {[%emt 0:04:43]} 21. Bf7 {[%emt 0:01:29]} e4 {[%emt 0:00:42]} 22. dxe4 {[%emt 0:00:12]} fxe4 {[%emt 0:03:51]} 23. Qb3 {[%emt 0:00:47]} Bg7 {[%emt 0:10:00]} 24. Qxa4 {[%emt 0:00:56]} Rf8 {[%emt 0:00:12]} 25. Bd5 {[%emt 0:01:18]} Qf6 {[%emt 0:00:37]} 26. Bf4 {[%emt 0:10:01]} g5 {[%emt 0:01:18]} 27. Rxe4 {[%emt 0:00:14]} d3 {[%emt 0:01:56]} 28. Be3 {[%emt 0:08:17]} dxc2 {[%emt 0:01:32]} 29. Rc1 {[%emt 0:03:38]} Bf5 {[%emt 0:00:51]} 30. Qxc2 {[%emt 0:00:52]} Qg6 {[%emt 0:03:26]} 31. g4 {[%emt 0:03:12]} Bxe4 {[%emt 0:00:02]} 32. Qxe4 {[%emt 0:00:07]} Qf6 {[%emt 0:00:59]} 33. Qd3 {[%emt 0:09:39]} Rad8 {[%emt 0:00:57]} 34. a4 {[%emt 0:03:27]} Qh6 {[%emt 0:01:15]} 35. Kg2 {[%emt 0:00:43]} Be5 {[%emt 0:01:00]} 36. h3 {[%emt 0:00:48]} b6 {[%emt 0:00:40]} 37. Qd2 {[%emt 0:01:21]} Bf6 {[%emt 0:01:12]} 38. b5 {[%emt 0:03:21]} Qg7 {[%emt 0:00:17]} 39. a5 {[%emt 0:00:46]} bxa5 {[%emt 0:00:26]} 40. Qxa5 {[%emt 0:00:00]} Bd4 {[%emt 0:00:00]} 41. Qd2 {[%emt 0:15:16]} Bxe3 {[%emt 0:17:02]} 42. Qxe3 {[%emt 0:01:46]} Rde8 {[%emt 0:00:24]} 43. Qd2 {[%emt 0:00:52]} Qf6 {[%emt 0:02:41]} 44. Rc2 {[%emt 0:03:17]} Re5 {[%emt 0:01:02]} 45. Ra2 {[%emt 0:01:49]} Re7 {[%emt 0:01:31]} 46. Qd3 {[%emt 0:02:50]} Rg7 {[%emt 0:00:51]} 47. Qe3 {[%emt 0:00:35]} Qf4 {[%emt 0:02:14]} 48. Qxf4 {[%emt 0:01:07]} gxf4 {[%emt 0:01:31]} 49. Kf3 {[%emt 0:00:07]} Re7 {[%emt 0:00:42]} 50. Ra6 {[%emt 0:00:22]} Kg7 {[%emt 0:00:26]} 51. g5 {[%emt 0:00:13]} Rb8 {[%emt 0:03:38]} 52. Rd6 {[%emt 0:00:20]} Rh8 {[%emt 0:01:46]} 53. h4 {[%emt 0:00:59]} h6 {[%emt 0:00:14]} 54. Kg4 {[%emt 0:04:31]} hxg5 {[%emt 0:00:13]} 55. hxg5 {[%emt 0:00:04]} Rf8 {[%emt 0:00:35]} 56. Ra6 {[%emt 0:02:17]} Kh8 {[%emt 0:00:15]} 57. f3 {[%emt 0:00:25]} Rc7 {[%emt 0:03:03]} 58. Ra2 {[%emt 0:01:00]} Re7 {[%emt 0:00:43]} 59. Be4 {[%emt 0:00:40]} Kg7 {[%emt 0:01:35]} 60. Rh2 {[%emt 0:00:28]} Rxe4 {[%emt 0:00:35]} 61. fxe4 {[%emt 0:00:08]} f3 {[%emt 0:00:02]} 62. Rf2 {[%emt 0:01:30]} Rc8 {[%emt 0:00:08]} 63. Kxf3 {[%emt 0:00:09]} Rxc4 {[%emt 0:00:03]} 64. Ra2 {[%emt 0:00:06]} Rb4 {[%emt 0:02:00]} 65. Rxa7+ {[%emt 0:00:37]} Kg6 {[%emt 0:00:07]} 66. Kf4 {[%emt 0:00:23]} Rxb5 {[%emt 0:00:11]} 67. Ra6+ {[%emt 0:00:10]} Kg7 {[%emt 0:00:31]} 68. e5 {[%emt 0:00:53]} Rb1 {[%emt 0:00:22]} 69. Kf5 {[%emt 0:00:26]} Rf1+ {[%emt 0:01:08]} 70. Ke6 {[%emt 0:00:05]} Re1 {[%emt 0:00:19]} 71. Ra8 {[%emt 0:00:16]} Re2 {[%emt 0:00:09]} 72. Re8 {[%emt 0:00:08]} Re1 {[%emt 0:00:14]} 73. Kd7 {[%emt 0:00:44]} Rd1+ {[%emt 0:00:24]} 74. Ke7 {[%emt 0:00:10]} Ra1 {[%emt 0:00:07]} 75. Rd8 {[%emt 0:00:25]} Kg6 {[%emt 0:00:47]} 76. e6 {[%emt 0:00:44]} Ra7+ {[%emt 0:00:30]} 77. Kf8 {[%emt 0:01:35]} Rh7 {[%emt 0:00:02]} 78. Rd5 {[%emt 0:00:15]} Rh8+ {[%emt 0:01:04]} 79. Ke7 {[%emt 0:00:05]} Ra8 {[%emt 0:00:01]} 80. Rc5 {[%emt 0:00:10]} Kg7 {[%emt 0:00:53]} 81. Kd7 {[%emt 0:00:22]} Ra1 {[%emt 0:01:00]} 82. Rc6 {[%emt 0:01:48]} Rd1+ {[%emt 0:01:11]} 83. Rd6 {[%emt 0:00:12]} Ra1 {[%emt 0:00:35]} 84. e7 {[%emt 0:00:14]} Ra7+ {[%emt 0:00:05]} 85. Ke6 {[%emt 0:00:09]} 1-0

[Event "11th Arad Open 2018"]
[Site "Arad"]
[Date "2018.08.08"]
[Round "5"]
[White "Antal, Gergely"]
[Black "Cioara, Andrei-Nestor"]
[Result "1-0"]
[ECO "C06"]
[WhiteElo "2549"]
[BlackElo "2435"]
[Annotator "ChessBase"]
[PlyCount "75"]
[EventDate "2018.08.05"]
[EventType "swiss"]
[EventCountry "ROU"]
[SourceTitle "playchess.com"]
[Source "ChessBase"]
[SourceQuality "1"]
[TimeControl "40/5400+30:1800+30"]

1. e4 {[%emt 0:00:00]} e6 {[%emt 0:00:42]} 2. d4 {[%emt 0:00:00]} d5 {[%emt 0:00:04]} 3. Nd2 {[%emt 0:00:00]} Nf6 {[%emt 0:00:14]} 4. e5 {[%emt 0:00:45]} Nfd7 {[%emt 0:00:06]} 5. Bd3 {[%emt 0:00:05]} c5 {[%emt 0:00:06]} 6. c3 {[%emt 0:00:03]} Nc6 {[%emt 0:00:03]} 7. Ne2 {[%emt 0:00:06]} cxd4 {[%emt 0:00:04]} 8. cxd4 {[%emt 0:00:02]} f6 {[%emt 0:00:07]} 9. exf6 {[%emt 0:00:04]} Nxf6 {[%emt 0:00:53]} 10. O-O {[%emt 0:00:24]} Bd6 {[%emt 0:03:18]} 11. Nf3 {[%emt 0:00:07]} Qc7 {[%emt 0:00:06]} 12. g3 {[%emt 0:01:20]} O-O {[%emt 0:03:03]} 13. Bf4 {[%emt 0:00:06]} Ng4 {[%emt 0:16:01]} 14. Rc1 {[%emt 0:00:55]} Bxf4 {[%emt 0:02:53]} 15. Nxf4 {[%emt 0:00:06]} Rxf4 {[%emt 0:00:03]} 16. gxf4 {[%emt 0:00:06]} Qxf4 {[%emt 0:00:07]} 17. Rc3 {[%emt 0:00:06]} e5 {[%emt 0:13:36]} 18. Qd2 {[%emt 0:01:36]} Qxd2 {[%emt 0:01:40]} 19. Nxd2 {[%emt 0:00:05]} exd4 {[%emt 0:17:06]} 20. Rc5 {[%emt 0:00:34]} Be6 {[%emt 0:05:17]} 21. Re1 {[%emt 0:05:35]} Bf7 {[%emt 0:02:06]} 22. Bb5 {[%emt 0:06:51]} Nge5 {[%emt 0:02:57]} 23. f4 {[%emt 0:02:10]} Ng6 {[%emt 0:00:12]} 24. Bxc6 {[%emt 0:02:38]} bxc6 {[%emt 0:00:13]} 25. f5 {[%emt 0:00:38]} Nh4 {[%emt 0:01:29]} 26. Rxc6 {[%emt 0:01:39]} Nxf5 {[%emt 0:00:10]} 27. Rec1 {[%emt 0:00:52]} Ne7 {[%emt 0:01:27]} 28. Rc7 {[%emt 0:00:19]} Kf8 {[%emt 0:01:01]} 29. Nf3 {[%emt 0:02:42]} d3 {[%emt 0:14:12]} 30. Ne5 {[%emt 0:01:25]} Bg6 {[%emt 0:00:45]} 31. Nxg6+ {[%emt 0:02:26]} Nxg6 {[%emt 0:01:19]} 32. Rc8+ {[%emt 0:00:33]} Rxc8 {[%emt 0:00:04]} 33. Rxc8+ {[%emt 0:00:04]} Ke7 {[%emt 0:00:39]} 34. Kf2 {[%emt 0:00:20]} Kd6 {[%emt 0:03:02]} 35. Rg8 {[%emt 0:05:01]} Nf4 {[%emt 0:08:35]} 36. Ke3 {[%emt 0:00:26]} g6 {[%emt 0:01:35]} 37. Rg7 {[%emt 0:03:30]} h5 {[%emt 0:00:06]} 38. Kxf4 {[%emt 0:00:15]} 1-0

[Event "11th Arad Open 2018"]
[Site "Arad"]
[Date "2018.08.08"]
[Round "5"]
[White "Balog, Imre"]
[Black "Aczel, Gergely"]
[Result "1/2-1/2"]
[ECO "A45"]
[WhiteElo "2540"]
[BlackElo "2551"]
[Annotator "ChessBase"]
[PlyCount "75"]
[EventDate "2018.08.05"]
[EventType "swiss"]
[EventCountry "ROU"]
[SourceTitle "playchess.com"]
[Source "ChessBase"]
[SourceQuality "1"]
[TimeControl "40/5400+30:1800+30"]

1. d4 {[%emt 0:01:33]} Nf6 {[%emt 0:00:00]} 2. Bg5 {[%emt 0:00:08]} e6 {[%emt 0:00:00]} 3. e4 {[%emt 0:00:58]} h6 {[%emt 0:00:00]} 4. Bxf6 {[%emt 0:00:06]} Qxf6 {[%emt 0:00:00]} 5. Nc3 {[%emt 0:01:04]} Bb4 {[%emt 0:00:17]} 6. Qd2 {[%emt 0:01:05]} d6 {[%emt 0:07:58]} 7. Nf3 {[%emt 0:02:30]} Nd7 {[%emt 0:01:16]} 8. a3 {[%emt 0:00:34]} Ba5 {[%emt 0:00:31]} 9. Be2 {[%emt 0:07:22]} O-O {[%emt 0:00:11]} 10. O-O {[%emt 0:01:22]} c6 {[%emt 0:04:52]} 11. b4 {[%emt 0:07:06]} Bc7 {[%emt 0:02:06]} 12. Rfe1 {[%emt 0:05:04]} a6 {[%emt 0:00:09]} 13. a4 {[%emt 0:01:38]} e5 {[%emt 0:14:56]} 14. a5 {[%emt 0:02:58]} exd4 {[%emt 0:00:33]} 15. Qxd4 {[%emt 0:04:05]} Re8 {[%emt 0:01:12]} 16. Bc4 {[%emt 0:03:43]} Ne5 {[%emt 0:16:41]} 17. Nxe5 {[%emt 0:01:10]} dxe5 {[%emt 0:00:06]} 18. Qe3 {[%emt 0:02:13]} Bd6 {[%emt 0:06:47]} 19. Rab1 {[%emt 0:01:13]} Qe7 {[%emt 0:00:34]} 20. Na4 {[%emt 0:00:22]} Bg4 {[%emt 0:13:54]} 21. h3 {[%emt 0:03:17]} Bh5 {[%emt 0:00:02]} 22. c3 {[%emt 0:00:22]} Bb8 {[%emt 0:06:15]} 23. Bf1 {[%emt 0:30:32]} Ba7 {[%emt 0:00:17]} 24. Nb6 {[%emt 0:00:02]} Rad8 {[%emt 0:00:25]} 25. Rb2 {[%emt 0:03:40]} Qc7 {[%emt 0:02:41]} 26. Qc5 {[%emt 0:02:11]} Rd7 {[%emt 0:01:23]} 27. Kh2 {[%emt 0:01:39]} Bg6 {[%emt 0:00:45]} 28. Bc4 {[%emt 0:01:11]} Red8 {[%emt 0:03:02]} 29. Qe3 {[%emt 0:01:25]} Rd6 {[%emt 0:00:44]} 30. Bf1 {[%emt 0:01:07]} Kh7 {[%emt 0:05:26]} 31. Be2 {[%emt 0:00:35]} Qe7 {[%emt 0:00:15]} 32. g3 {[%emt 0:02:35]} f6 {[%emt 0:08:47]} 33. Kg2 {[%emt 0:00:42]} Bf7 {[%emt 0:00:02]} 34. Qc5 {[%emt 0:03:04]} Qc7 {[%emt 0:00:52]} 35. Qe3 {[%emt 0:02:30]} Be6 {[%emt 0:00:04]} 36. Bf1 {[%emt 0:04:35]} Bf7 {[%emt 0:00:05]} 37. Be2 {[%emt 0:00:16]} Be6 {[%emt 0:00:02]} 38. Bf1 1/2-1/2

[Event "11th Arad Open 2018"]
[Site "Arad"]
[Date "2018.08.08"]
[Round "5"]
[White "Gavrilescu, David"]
[Black "Tomici, Stefan"]
[Result "1-0"]
[ECO "E11"]
[WhiteElo "2468"]
[BlackElo "2306"]
[Annotator "ChessBase"]
[PlyCount "73"]
[EventDate "2018.08.05"]
[EventType "swiss"]
[EventCountry "ROU"]
[SourceTitle "playchess.com"]
[Source "ChessBase"]
[SourceQuality "1"]
[TimeControl "40/5400+30:1800+30"]

1. d4 {[%emt 0:00:00]} e6 {[%emt 0:03:08]} 2. Nf3 {[%emt 0:00:16]} Nf6 {[%emt 0:00:09]} 3. c4 {[%emt 0:01:01]} Bb4+ {[%emt 0:00:06]} 4. Nbd2 {[%emt 0:00:47]} d6 {[%emt 0:00:06]} 5. a3 {[%emt 0:02:00]} Bxd2+ {[%emt 0:00:09]} 6. Bxd2 {[%emt 0:01:34]} Nbd7 {[%emt 0:06:00]} 7. g3 {[%emt 0:02:24]} b6 {[%emt 0:04:28]} 8. Bg2 {[%emt 0:00:53]} Bb7 {[%emt 0:00:19]} 9. O-O {[%emt 0:01:10]} O-O {[%emt 0:04:54]} 10. b4 {[%emt 0:04:49]} Qe7 {[%emt 0:10:01]} 11. Qb3 {[%emt 0:03:53]} Ne4 {[%emt 0:14:35]} 12. Be3 {[%emt 0:02:40]} h6 {[%emt 0:13:39]} 13. d5 {[%emt 0:16:35]} Ndf6 {[%emt 0:21:45]} 14. Rad1 {[%emt 0:11:32]} a5 {[%emt 0:07:12]} 15. Nh4 {[%emt 0:18:45]} axb4 {[%emt 0:07:14]} 16. axb4 {[%emt 0:02:59]} b5 {[%emt 0:02:29]} 17. Qc2 {[%emt 0:02:09]} exd5 {[%emt 0:00:20]} 18. cxd5 {[%emt 0:00:02]} Rfe8 {[%emt 0:00:33]} 19. Bd4 {[%emt 0:01:54]} Ng5 {[%emt 0:01:45]} 20. e3 {[%emt 0:05:29]} Ngh7 {[%emt 0:00:29]} 21. Rc1 {[%emt 0:04:22]} Rac8 {[%emt 0:00:29]} 22. Qd3 {[%emt 0:02:37]} Qd7 {[%emt 0:00:25]} 23. e4 {[%emt 0:02:43]} c6 {[%emt 0:00:28]} 24. dxc6 {[%emt 0:00:58]} Bxc6 {[%emt 0:00:28]} 25. Rfe1 {[%emt 0:00:01]} Bb7 {[%emt 0:00:41]} 26. Rxc8 {[%emt 0:07:24]} Bxc8 {[%emt 0:00:11]} 27. Ra1 {[%emt 0:01:51]} Bb7 {[%emt 0:00:43]} 28. Ra7 {[%emt 0:00:27]} Nxe4 {[%emt 0:00:26]} 29. Bxg7 {[%emt 0:02:23]} Kxg7 {[%emt 0:00:39]} 30. Bxe4 {[%emt 0:00:08]} d5 {[%emt 0:00:30]} 31. Bxh7 {[%emt 0:00:18]} Re1+ {[%emt 0:00:18]} 32. Kg2 {[%emt 0:00:10]} d4+ {[%emt 0:00:16]} 33. f3 {[%emt 0:00:21]} Qc8 {[%emt 0:00:53]} 34. Nf5+ {[%emt 0:00:38]} Kf8 {[%emt 0:00:09]} 35. Qxd4 {[%emt 0:00:18]} Bxf3+ {[%emt 0:00:51]} 36. Kh3 {[%emt 0:00:27]} Bg2+ {[%emt 0:00:34]} 37. Kxg2 {[%emt 0:00:02]} 1-0